[Event "Early-Titled-Tuesday-Blitz-February-06-2024"]
[Site "Chess.com"]
[Date "2024.02.06"]
[Round "6"]
[White "baki83"]
[Black "Dinosaurio_1975"]
[Result "1-0"]
[WhiteElo "2802"]
[BlackElo "2590"]
[TimeControl "180+1"]
[EndTime "9:07:51 PST"]
[Termination "baki83 won on time"]

1. e4 {[%clk 0:03:00.9]} 1... c6 {[%clk 0:02:56.8]} 2. Nf3 {[%clk 0:02:59.7]}
2... d5 {[%clk 0:02:57.7]} 3. Nc3 {[%clk 0:03:00]} 3... dxe4 {[%clk 0:02:57.4]}
4. Nxe4 {[%clk 0:03:00.6]} 4... Nf6 {[%clk 0:02:57.8]} 5. Qe2 {[%clk 0:03:00.8]}
5... Nxe4 {[%clk 0:02:57.5]} 6. Qxe4 {[%clk 0:03:00.9]} 6... Nd7 {[%clk
0:02:58.4]} 7. Bc4 {[%clk 0:02:59.4]} 7... Nf6 {[%clk 0:02:59.3]} 8. Ne5 {[%clk
0:02:52.5]} 8... e6 {[%clk 0:02:58.2]} 9. Qe2 {[%clk 0:02:52.7]} 9... b5 {[%clk
0:02:57.4]} 10. Bd3 {[%clk 0:02:52.6]} 10... Bd6 {[%clk 0:02:55.2]} 11. a4
{[%clk 0:02:45.8]} 11... a6 {[%clk 0:02:51.8]} 12. axb5 {[%clk 0:02:43.1]} 12...
Qc7 {[%clk 0:02:34.3]} 13. Nc4 {[%clk 0:02:20.6]} 13... Bc5 {[%clk 0:01:55.2]}
14. bxc6 {[%clk 0:02:06.7]} 14... Qxc6 {[%clk 0:01:53]} 15. Qf3 {[%clk
0:01:43.6]} 15... Qxf3 {[%clk 0:01:43.6]} 16. gxf3 {[%clk 0:01:43.4]} 16... Bb7
{[%clk 0:01:44.5]} 17. Be2 {[%clk 0:01:18.7]} 17... Ng4 {[%clk 0:00:55.8]} 18.
Na5 {[%clk 0:00:49.8]} 18... Bd5 {[%clk 0:00:29.7]} 19. c4 {[%clk 0:00:43.9]}
19... Nxf2 {[%clk 0:00:13.5]} 20. Rf1 {[%clk 0:00:43.2]} 20... Bxf3 {[%clk
0:00:11.1]} 21. Bxf3 {[%clk 0:00:37.4]} 21... Nd3+ {[%clk 0:00:11.3]} 22. Ke2
{[%clk 0:00:34.5]} 22... O-O-O {[%clk 0:00:11.4]} 23. Nb7 {[%clk 0:00:29.5]}
23... Rd7 {[%clk 0:00:05.8]} 24. Nxc5 {[%clk 0:00:28.5]} 24... Nxc5 {[%clk
0:00:06.7]} 25. b4 {[%clk 0:00:27.5]} 25... Nb3 {[%clk 0:00:06]} 26. Rxa6 {[%clk
0:00:26.2]} 26... Rhd8 {[%clk 0:00:04.8]} 27. Ra8+ {[%clk 0:00:24.8]} 27... Kc7
{[%clk 0:00:05.4]} 28. Rxd8 {[%clk 0:00:25.2]} 28... Rxd8 {[%clk 0:00:06.3]} 29.
d3 {[%clk 0:00:21.5]} 29... Nd4+ {[%clk 0:00:06.5]} 30. Kd2 {[%clk 0:00:21.8]}
30... e5 {[%clk 0:00:05.8]} 31. Bb2 {[%clk 0:00:21.6]} 31... Nb3+ {[%clk
0:00:04.9]} 32. Kc3 {[%clk 0:00:21.5]} 32... Nd4 {[%clk 0:00:05.6]} 33. Bd5
{[%clk 0:00:21.2]} 33... f5 {[%clk 0:00:05.5]} 34. Ra1 {[%clk 0:00:19.9]} 34...
Kb6 {[%clk 0:00:02.8]} 35. c5+ {[%clk 0:00:19.3]} 35... Kc7 {[%clk 0:00:02.8]}
36. Bc4 {[%clk 0:00:19.4]} 36... e4 {[%clk 0:00:02]} 37. Kd2 {[%clk 0:00:16.9]}
37... Nf3+ {[%clk 0:00:01.7]} 38. Ke3 {[%clk 0:00:17]} 38... g5 {[%clk 0:00:02]}
39. dxe4 {[%clk 0:00:16.8]} 39... fxe4 {[%clk 0:00:02.9]} 40. Ra7+ {[%clk
0:00:15.2]} 40... Kc6 {[%clk 0:00:03.3]} 41. Ba3 {[%clk 0:00:11.9]} 41... Nd4
{[%clk 0:00:02]} 42. b5+ {[%clk 0:00:10.7]} 42... Nxb5 {[%clk 0:00:02.2]} 43.
Ra6+ {[%clk 0:00:11.3]} 43... Kb7 {[%clk 0:00:02.3]} 44. Bxb5 {[%clk 0:00:12]}
1-0

[Event "Early-Titled-Tuesday-Blitz-February-06-2024"]
[Site "Chess.com"]
[Date "2024.02.06"]
[Round "6"]
[White "KetiTsatsalashvili"]
[Black "Semetey"]
[Result "0-1"]
[WhiteElo "2436"]
[BlackElo "2641"]
[TimeControl "180+1"]
[EndTime "9:07:51 PST"]
[Termination "Semetey won by checkmate"]

1. d4 {[%clk 0:03:00.9]} 1... d5 {[%clk 0:02:53]} 2. Nf3 {[%clk 0:03:00.7]} 2...
Nf6 {[%clk 0:02:52]} 3. e3 {[%clk 0:03:00.1]} 3... e6 {[%clk 0:02:50.8]} 4. Bd3
{[%clk 0:03:00]} 4... Be7 {[%clk 0:02:50.6]} 5. O-O {[%clk 0:02:59.6]} 5... O-O
{[%clk 0:02:51.2]} 6. Ne5 {[%clk 0:02:59.7]} 6... c5 {[%clk 0:02:50.1]} 7. b3
{[%clk 0:02:59.4]} 7... Nc6 {[%clk 0:02:48]} 8. Bb2 {[%clk 0:02:59.1]} 8... Qc7
{[%clk 0:02:45.8]} 9. a3 {[%clk 0:02:57]} 9... Nxe5 {[%clk 0:02:20.9]} 10. dxe5
{[%clk 0:02:56.1]} 10... Nd7 {[%clk 0:02:21.8]} 11. f4 {[%clk 0:02:55.7]} 11...
g6 {[%clk 0:02:21.3]} 12. Nd2 {[%clk 0:02:53.5]} 12... b6 {[%clk 0:02:17.2]} 13.
c4 {[%clk 0:02:53.8]} 13... Bb7 {[%clk 0:02:15.9]} 14. cxd5 {[%clk 0:02:52.3]}
14... Bxd5 {[%clk 0:02:15.9]} 15. e4 {[%clk 0:02:50.6]} 15... Bc6 {[%clk
0:02:14.1]} 16. Qe2 {[%clk 0:02:44.7]} 16... Rad8 {[%clk 0:02:13.7]} 17. a4
{[%clk 0:02:36.2]} 17... Bb7 {[%clk 0:02:08.4]} 18. Rac1 {[%clk 0:02:31.8]}
18... Rfe8 {[%clk 0:02:05.2]} 19. Bc4 {[%clk 0:02:27.2]} 19... Bf8 {[%clk
0:02:04.3]} 20. Nf3 {[%clk 0:02:25.2]} 20... Bg7 {[%clk 0:02:04.1]} 21. Ng5
{[%clk 0:02:15.3]} 21... h6 {[%clk 0:01:58.6]} 22. Nf3 {[%clk 0:02:15.2]} 22...
Nb8 {[%clk 0:01:58.3]} 23. f5 {[%clk 0:02:13]} 23... Nc6 {[%clk 0:01:52.7]} 24.
fxe6 {[%clk 0:02:08.1]} 24... fxe6 {[%clk 0:01:52]} 25. Bb5 {[%clk 0:01:54.4]}
25... Rf8 {[%clk 0:01:49.1]} 26. Bc4 {[%clk 0:01:49.2]} 26... Rde8 {[%clk
0:01:46.2]} 27. Qe3 {[%clk 0:01:34.3]} 27... Kh7 {[%clk 0:01:45.6]} 28. Bc3
{[%clk 0:01:25]} 28... Nxe5 {[%clk 0:01:42.5]} 29. Nxe5 {[%clk 0:01:14.6]} 29...
Bxe5 {[%clk 0:01:43.4]} 30. Rxf8 {[%clk 0:00:57.4]} 30... Rxf8 {[%clk
0:01:42.8]} 31. Bxe6 {[%clk 0:00:52.7]} 31... Bxh2+ {[%clk 0:01:31.6]} 32. Kh1
{[%clk 0:00:51.9]} 32... Bf4 {[%clk 0:01:32.5]} 33. Qe1 {[%clk 0:00:50.6]} 33...
Qe7 {[%clk 0:01:24.4]} 34. Bh3 {[%clk 0:00:29.7]} 34... Bxc1 {[%clk 0:01:20.2]}
35. Qxc1 {[%clk 0:00:30.6]} 35... Bxe4 {[%clk 0:01:12.6]} 36. Qe1 {[%clk
0:00:25.1]} 36... Rf7 {[%clk 0:01:08.6]} 37. Bb2 {[%clk 0:00:20.5]} 37... Bf5
{[%clk 0:01:03.7]} 38. Qc3 {[%clk 0:00:17.7]} 38... Qf8 {[%clk 0:01:03.9]} 39.
Bxf5 {[%clk 0:00:13.9]} 39... Rxf5 {[%clk 0:01:04.8]} 40. Kh2 {[%clk 0:00:12.5]}
40... h5 {[%clk 0:00:54.5]} 41. a5 {[%clk 0:00:09.8]} 41... bxa5 {[%clk
0:00:52.5]} 42. Qxa5 {[%clk 0:00:10.3]} 42... Qd6+ {[%clk 0:00:51.9]} 43. Kh3
{[%clk 0:00:09.2]} 43... Rf7 {[%clk 0:00:47.6]} 44. Qc3 {[%clk 0:00:08.3]} 44...
Qd4 {[%clk 0:00:44.8]} 45. Qxd4 {[%clk 0:00:06.5]} 45... cxd4 {[%clk 0:00:44.9]}
46. Bxd4 {[%clk 0:00:07.4]} 46... Rb7 {[%clk 0:00:42]} 47. b4 {[%clk 0:00:07.4]}
47... a6 {[%clk 0:00:39.4]} 48. Bc5 {[%clk 0:00:07.3]} 48... g5 {[%clk
0:00:39.5]} 49. Kg3 {[%clk 0:00:06.7]} 49... Rf7 {[%clk 0:00:38.5]} 50. Kh3
{[%clk 0:00:06.8]} 50... Kg6 {[%clk 0:00:39]} 51. Kg3 {[%clk 0:00:07.2]} 51...
Rf1 {[%clk 0:00:37.7]} 52. Kh3 {[%clk 0:00:07.3]} 52... Kf5 {[%clk 0:00:37.8]}
53. Kg3 {[%clk 0:00:07.7]} 53... h4+ {[%clk 0:00:37.6]} 54. Kh2 {[%clk
0:00:07.9]} 54... g4 {[%clk 0:00:37.7]} 55. Be7 {[%clk 0:00:07.9]} 55... g3+
{[%clk 0:00:37.2]} 56. Kh3 {[%clk 0:00:08.2]} 56... Rh1# {[%clk 0:00:37.4]} 0-1

[Event "Early-Titled-Tuesday-Blitz-February-06-2024"]
[Site "Chess.com"]
[Date "2024.02.06"]
[Round "6"]
[White "wild3000"]
[Black "LeoLV10"]
[Result "1-0"]
[WhiteElo "2374"]
[BlackElo "2490"]
[TimeControl "180+1"]
[EndTime "9:07:51 PST"]
[Termination "wild3000 won on time"]

1. d4 {[%clk 0:03:00.9]} 1... Nf6 {[%clk 0:02:57.3]} 2. Nf3 {[%clk 0:03:01.1]}
2... e6 {[%clk 0:02:54.8]} 3. g3 {[%clk 0:03:01.4]} 3... c5 {[%clk 0:02:55.1]}
4. Bg2 {[%clk 0:03:01.3]} 4... Nc6 {[%clk 0:02:55.6]} 5. O-O {[%clk 0:03:01]}
5... d5 {[%clk 0:02:56]} 6. c3 {[%clk 0:03:00.7]} 6... Be7 {[%clk 0:02:56.5]} 7.
dxc5 {[%clk 0:03:00.4]} 7... Bxc5 {[%clk 0:02:56.7]} 8. b4 {[%clk 0:03:01.1]}
8... Bd6 {[%clk 0:02:56.2]} 9. Bb2 {[%clk 0:03:01.7]} 9... O-O {[%clk
0:02:56.3]} 10. a3 {[%clk 0:03:01.8]} 10... a6 {[%clk 0:02:50.8]} 11. Nbd2
{[%clk 0:02:58.5]} 11... Qe7 {[%clk 0:02:45.9]} 12. c4 {[%clk 0:02:57.5]} 12...
Rd8 {[%clk 0:02:46.4]} 13. Qb3 {[%clk 0:02:54.7]} 13... Bc7 {[%clk 0:02:44.5]}
14. Rfd1 {[%clk 0:02:52.5]} 14... Bd7 {[%clk 0:02:36.1]} 15. Rac1 {[%clk
0:02:44.8]} 15... Rac8 {[%clk 0:02:34.6]} 16. e3 {[%clk 0:02:39.6]} 16... Be8
{[%clk 0:02:33.6]} 17. h4 {[%clk 0:02:36.3]} 17... b5 {[%clk 0:02:22.6]} 18. c5
{[%clk 0:02:35.6]} 18... e5 {[%clk 0:02:21.2]} 19. Nb1 {[%clk 0:02:24.4]} 19...
h6 {[%clk 0:02:18.7]} 20. Nc3 {[%clk 0:02:17.7]} 20... e4 {[%clk 0:02:03.9]} 21.
Nd4 {[%clk 0:02:12.5]} 21... Nxd4 {[%clk 0:02:03.5]} 22. Rxd4 {[%clk 0:02:12]}
22... Bc6 {[%clk 0:02:01.2]} 23. Rcd1 {[%clk 0:02:09.6]} 23... Qe6 {[%clk
0:01:47.6]} 24. Ne2 {[%clk 0:01:51.2]} 24... Qf5 {[%clk 0:01:44.7]} 25. R4d2
{[%clk 0:01:48.7]} 25... Ng4 {[%clk 0:01:40.4]} 26. Nd4 {[%clk 0:01:47.2]} 26...
Qf6 {[%clk 0:01:33.9]} 27. Nxb5 {[%clk 0:01:31]} 27... Qg6 {[%clk 0:01:09.7]}
28. Nxc7 {[%clk 0:01:29.4]} 28... Rxc7 {[%clk 0:01:10.6]} 29. Bh3 {[%clk
0:01:18.7]} 29... Ne5 {[%clk 0:00:57.7]} 30. Bxe5 {[%clk 0:01:14.2]} 30... Rb7
{[%clk 0:00:56.9]} 31. Qc3 {[%clk 0:01:11.2]} 31... Re8 {[%clk 0:00:42.7]} 32.
Bg2 {[%clk 0:00:58.7]} 32... f6 {[%clk 0:00:39.7]} 33. Bd6 {[%clk 0:00:56.1]}
33... Qf5 {[%clk 0:00:39.7]} 34. Kh2 {[%clk 0:00:49.3]} 34... g5 {[%clk
0:00:35.6]} 35. Bh3 {[%clk 0:00:47.3]} 35... Qg6 {[%clk 0:00:31.8]} 36. Rxd5
{[%clk 0:00:40.5]} 36... Rg7 {[%clk 0:00:18.8]} 37. hxg5 {[%clk 0:00:37.9]}
37... hxg5 {[%clk 0:00:16.6]} 38. Bf5 {[%clk 0:00:37]} 38... Qh5+ {[%clk
0:00:12.8]} 39. Kg1 {[%clk 0:00:22]} 39... Kf7 {[%clk 0:00:07.7]} 40. Qc4 {[%clk
0:00:12.8]} 40... Bb5 {[%clk 0:00:05.7]} 41. Qb3 {[%clk 0:00:12.3]} 41... Rh8
{[%clk 0:00:02.7]} 42. Re5+ {[%clk 0:00:11.9]} 1-0

[Event "Early-Titled-Tuesday-Blitz-February-06-2024"]
[Site "Chess.com"]
[Date "2024.02.06"]
[Round "6"]
[White "tylityli"]
[Black "Happy1712Drummer"]
[Result "1-0"]
[WhiteElo "2250"]
[BlackElo "2385"]
[TimeControl "180+1"]
[EndTime "9:07:53 PST"]
[Termination "tylityli won by checkmate"]

1. d4 {[%clk 0:03:00.9]} 1... d5 {[%clk 0:02:58.7]} 2. c4 {[%clk 0:02:58.8]}
2... e6 {[%clk 0:02:58.7]} 3. Nc3 {[%clk 0:02:58.7]} 3... a6 {[%clk 0:02:58.7]}
4. cxd5 {[%clk 0:02:59]} 4... exd5 {[%clk 0:02:59.1]} 5. Bf4 {[%clk 0:02:59.7]}
5... Nf6 {[%clk 0:02:56.6]} 6. e3 {[%clk 0:02:59.3]} 6... Bd6 {[%clk 0:02:56.2]}
7. Bg3 {[%clk 0:02:58.7]} 7... O-O {[%clk 0:02:55.9]} 8. Qc2 {[%clk 0:02:58.1]}
8... Be6 {[%clk 0:02:52]} 9. Bd3 {[%clk 0:02:56.6]} 9... c6 {[%clk 0:02:46.5]}
10. Bh4 {[%clk 0:02:55.6]} 10... g6 {[%clk 0:02:36.6]} 11. Nge2 {[%clk
0:02:42.3]} 11... Nbd7 {[%clk 0:02:36.1]} 12. h3 {[%clk 0:02:38.8]} 12... Qc7
{[%clk 0:02:33.1]} 13. O-O {[%clk 0:02:34.5]} 13... Rfe8 {[%clk 0:02:29.4]} 14.
Rac1 {[%clk 0:02:32.1]} 14... Kg7 {[%clk 0:02:19.1]} 15. f4 {[%clk 0:02:26.9]}
15... Ne4 {[%clk 0:01:07.8]} 16. Nxe4 {[%clk 0:02:14.4]} 16... dxe4 {[%clk
0:01:06.4]} 17. Bxe4 {[%clk 0:02:14.6]} 17... Bxa2 {[%clk 0:01:06.1]} 18. Bf2
{[%clk 0:02:06.1]} 18... Nf6 {[%clk 0:00:55.8]} 19. Bd3 {[%clk 0:01:52]} 19...
Bd5 {[%clk 0:00:55.6]} 20. Nc3 {[%clk 0:01:49.3]} 20... Rac8 {[%clk 0:00:48.9]}
21. e4 {[%clk 0:01:44.5]} 21... Bxf4 {[%clk 0:00:35.3]} 22. exd5 {[%clk
0:01:37.6]} 22... Bxc1 {[%clk 0:00:35.3]} 23. Rxc1 {[%clk 0:01:27]} 23... cxd5
{[%clk 0:00:33.1]} 24. Qb3 {[%clk 0:01:10.9]} 24... b5 {[%clk 0:00:26.4]} 25.
Rf1 {[%clk 0:01:01]} 25... Qd6 {[%clk 0:00:23.9]} 26. Bh4 {[%clk 0:00:55.4]}
26... Re6 {[%clk 0:00:12.4]} 27. Bb1 {[%clk 0:00:37]} 27... b4 {[%clk
0:00:11.5]} 28. Na4 {[%clk 0:00:32]} 28... Ne4 {[%clk 0:00:10.8]} 29. Bxe4
{[%clk 0:00:19.2]} 29... Rxe4 {[%clk 0:00:10.5]} 30. Bf6+ {[%clk 0:00:17.9]}
30... Kg8 {[%clk 0:00:09.8]} 31. Nc5 {[%clk 0:00:17.3]} 31... Rf4 {[%clk
0:00:09.5]} 32. Be5 {[%clk 0:00:13.8]} 32... Rxf1+ {[%clk 0:00:08.9]} 33. Kxf1
{[%clk 0:00:14.3]} 33... Qc6 {[%clk 0:00:08.6]} 34. Qxb4 {[%clk 0:00:10.7]}
34... f6 {[%clk 0:00:04.2]} 35. Bg3 {[%clk 0:00:06.2]} 35... Re8 {[%clk
0:00:04.4]} 36. Kg1 {[%clk 0:00:06.2]} 36... f5 {[%clk 0:00:01.8]} 37. Kh2
{[%clk 0:00:06.2]} 37... Qf6 {[%clk 0:00:01.9]} 38. Be5 {[%clk 0:00:06]} 38...
Qg5 {[%clk 0:00:01.9]} 39. Qb7 {[%clk 0:00:05.1]} 39... f4 {[%clk 0:00:02]} 40.
Qg7# {[%clk 0:00:03.8]} 1-0

[Event "Early-Titled-Tuesday-Blitz-February-06-2024"]
[Site "Chess.com"]
[Date "2024.02.06"]
[Round "6"]
[White "AlmasRakhmatullaev"]
[Black "jefferyx"]
[Result "1-0"]
[WhiteElo "2914"]
[BlackElo "3003"]
[TimeControl "180+1"]
[EndTime "9:07:57 PST"]
[Termination "AlmasRakhmatullaev won by checkmate"]

1. e4 {[%clk 0:02:59.8]} 1... c5 {[%clk 0:02:59.9]} 2. Nf3 {[%clk 0:02:59.8]}
2... d6 {[%clk 0:03:00.5]} 3. d4 {[%clk 0:03:00]} 3... cxd4 {[%clk 0:03:01.4]}
4. Qxd4 {[%clk 0:03:00.8]} 4... Nc6 {[%clk 0:03:00.7]} 5. Bb5 {[%clk 0:03:01]}
5... a6 {[%clk 0:03:01.2]} 6. Bxc6+ {[%clk 0:02:59.6]} 6... bxc6 {[%clk
0:03:02.1]} 7. c4 {[%clk 0:02:59.8]} 7... e5 {[%clk 0:03:02.3]} 8. Qd3 {[%clk
0:02:58.9]} 8... Ne7 {[%clk 0:03:02.7]} 9. Nc3 {[%clk 0:02:52]} 9... Ng6 {[%clk
0:03:02.8]} 10. h3 {[%clk 0:02:50.7]} 10... Be7 {[%clk 0:03:03.1]} 11. Be3
{[%clk 0:02:28.7]} 11... O-O {[%clk 0:03:02.7]} 12. g4 {[%clk 0:02:26.6]} 12...
Be6 {[%clk 0:02:55.1]} 13. O-O-O {[%clk 0:02:23.7]} 13... a5 {[%clk 0:02:47.6]}
14. Qe2 {[%clk 0:01:51.4]} 14... Qb8 {[%clk 0:02:39.5]} 15. h4 {[%clk
0:01:40.7]} 15... Qb4 {[%clk 0:02:39]} 16. h5 {[%clk 0:01:31.1]} 16... Nf4
{[%clk 0:02:36.4]} 17. Bxf4 {[%clk 0:01:29.6]} 17... exf4 {[%clk 0:02:37.3]} 18.
Nd4 {[%clk 0:01:19.6]} 18... Bxc4 {[%clk 0:02:20.6]} 19. Qd2 {[%clk 0:01:19.6]}
19... Bg5 {[%clk 0:01:54.7]} 20. h6 {[%clk 0:01:11.5]} 20... Rfb8 {[%clk
0:01:36.5]} 21. Kb1 {[%clk 0:01:02.3]} 21... f3 {[%clk 0:01:32.3]} 22. Qc2
{[%clk 0:01:02.7]} 22... Bf6 {[%clk 0:01:32.4]} 23. hxg7 {[%clk 0:00:57.9]}
23... Bxd4 {[%clk 0:01:30.9]} 24. Rxd4 {[%clk 0:00:58.1]} 24... Bxa2+ {[%clk
0:01:31.4]} 25. Nxa2 {[%clk 0:00:58.2]} 25... Qxd4 {[%clk 0:01:32.3]} 26. e5
{[%clk 0:00:58.7]} 26... f5 {[%clk 0:00:33.4]} 27. exf6 {[%clk 0:00:53]} 27...
Kf7 {[%clk 0:00:33.7]} 28. g8=Q+ {[%clk 0:00:38.4]} 28... Rxg8 {[%clk
0:00:33.6]} 29. Qxh7+ {[%clk 0:00:37.7]} 29... Ke6 {[%clk 0:00:34]} 30. Qe7+
{[%clk 0:00:10.7]} 30... Kd5 {[%clk 0:00:34.2]} 31. Nc3+ {[%clk 0:00:10.6]}
31... Kc5 {[%clk 0:00:27.4]} 32. Rd1 {[%clk 0:00:10.8]} 32... Qf4 {[%clk
0:00:27.3]} 33. Rxd6 {[%clk 0:00:07.4]} 33... Rge8 {[%clk 0:00:17.5]} 34. Rd5+
{[%clk 0:00:04.9]} 34... Kb6 {[%clk 0:00:17.9]} 35. Qc5+ {[%clk 0:00:04.9]}
35... Kc7 {[%clk 0:00:18.1]} 36. Rd1 {[%clk 0:00:03.1]} 36... Rad8 {[%clk
0:00:06.8]} 37. Nb5+ {[%clk 0:00:03.4]} 37... Kb7 {[%clk 0:00:03.9]} 38. Qa7+
{[%clk 0:00:03.4]} 38... Kc8 {[%clk 0:00:04.7]} 39. Qa6+ {[%clk 0:00:03.4]}
39... Kb8 {[%clk 0:00:05.3]} 40. Qb6+ {[%clk 0:00:03.9]} 40... Kc8 {[%clk
0:00:04.5]} 41. Na7# {[%clk 0:00:04.4]} 1-0

[Event "Early-Titled-Tuesday-Blitz-February-06-2024"]
[Site "Chess.com"]
[Date "2024.02.06"]
[Round "6"]
[White "soloderisas"]
[Black "Ginger_GM"]
[Result "1-0"]
[WhiteElo "2530"]
[BlackElo "2672"]
[TimeControl "180+1"]
[EndTime "9:07:57 PST"]
[Termination "soloderisas won on time"]

1. d4 {[%clk 0:03:00.8]} 1... e6 {[%clk 0:02:59.8]} 2. Nf3 {[%clk 0:03:00.7]}
2... f5 {[%clk 0:02:59.9]} 3. Bf4 {[%clk 0:03:01]} 3... Nf6 {[%clk 0:02:59.8]}
4. e3 {[%clk 0:03:01.6]} 4... b6 {[%clk 0:02:57.4]} 5. Be2 {[%clk 0:03:01.5]}
5... Bb7 {[%clk 0:02:57.9]} 6. O-O {[%clk 0:03:02.1]} 6... Be7 {[%clk
0:02:57.5]} 7. c4 {[%clk 0:03:02.6]} 7... Ne4 {[%clk 0:02:50.2]} 8. h3 {[%clk
0:02:53.4]} 8... d6 {[%clk 0:02:45.4]} 9. Nbd2 {[%clk 0:02:49.1]} 9... g5 {[%clk
0:02:41.4]} 10. Bh2 {[%clk 0:02:47.8]} 10... O-O {[%clk 0:02:24.2]} 11. Nxe4
{[%clk 0:02:45.9]} 11... Bxe4 {[%clk 0:02:17.7]} 12. Nd2 {[%clk 0:02:46]} 12...
Bb7 {[%clk 0:02:17.6]} 13. Bf3 {[%clk 0:02:41.1]} 13... Qc8 {[%clk 0:02:17.7]}
14. Rc1 {[%clk 0:02:38.8]} 14... Nd7 {[%clk 0:02:16.9]} 15. b4 {[%clk
0:02:37.4]} 15... a5 {[%clk 0:01:53.8]} 16. c5 {[%clk 0:02:31.5]} 16... bxc5
{[%clk 0:01:50.3]} 17. bxc5 {[%clk 0:02:31.2]} 17... Bxf3 {[%clk 0:01:45.7]} 18.
Qxf3 {[%clk 0:02:25.9]} 18... d5 {[%clk 0:01:42.9]} 19. Rb1 {[%clk 0:02:09.1]}
19... Nf6 {[%clk 0:01:39.6]} 20. Rb5 {[%clk 0:02:03.4]} 20... Ne4 {[%clk
0:01:16.5]} 21. Nxe4 {[%clk 0:02:01.4]} 21... dxe4 {[%clk 0:01:17.4]} 22. Qe2
{[%clk 0:01:49.4]} 22... Qd7 {[%clk 0:01:11.9]} 23. Rb7 {[%clk 0:01:43.7]} 23...
Rac8 {[%clk 0:01:07.2]} 24. Qa6 {[%clk 0:01:38.8]} 24... f4 {[%clk 0:00:57.2]}
25. exf4 {[%clk 0:01:30.5]} 25... gxf4 {[%clk 0:00:57]} 26. Re1 {[%clk 0:01:30]}
26... Qd5 {[%clk 0:00:55.6]} 27. Rb2 {[%clk 0:01:12]} 27... Bf6 {[%clk
0:00:47.4]} 28. Rbe2 {[%clk 0:00:51.2]} 28... e3 {[%clk 0:00:40.4]} 29. fxe3
{[%clk 0:00:47.7]} 29... fxe3 {[%clk 0:00:40.4]} 30. Be5 {[%clk 0:00:42.7]}
30... Bxe5 {[%clk 0:00:38.4]} 31. dxe5 {[%clk 0:00:42.8]} 31... Ra8 {[%clk
0:00:25.8]} 32. Qb5 {[%clk 0:00:42.3]} 32... Rfb8 {[%clk 0:00:18.8]} 33. Qa4
{[%clk 0:00:42.4]} 33... Rb4 {[%clk 0:00:18.8]} 34. Qc2 {[%clk 0:00:38.8]} 34...
Rc4 {[%clk 0:00:17.2]} 35. Qb3 {[%clk 0:00:34.9]} 35... a4 {[%clk 0:00:16]} 36.
Qxe3 {[%clk 0:00:34]} 36... Qxc5 {[%clk 0:00:16.6]} 37. Qxc5 {[%clk 0:00:24.7]}
37... Rxc5 {[%clk 0:00:17.5]} 38. Rf1 {[%clk 0:00:25.1]} 38... Raa5 {[%clk
0:00:17.3]} 39. Rf4 {[%clk 0:00:22.5]} 39... a3 {[%clk 0:00:14.6]} 40. Rg4+
{[%clk 0:00:22.5]} 40... Kf7 {[%clk 0:00:14.1]} 41. Rf2+ {[%clk 0:00:22.7]}
41... Ke8 {[%clk 0:00:11.6]} 42. Rg8+ {[%clk 0:00:21.1]} 42... Ke7 {[%clk
0:00:11.5]} 43. Rg7+ {[%clk 0:00:20.5]} 43... Ke8 {[%clk 0:00:11.2]} 44. Rxh7
{[%clk 0:00:19.8]} 44... Rxe5 {[%clk 0:00:10.6]} 45. Rff7 {[%clk 0:00:19.3]}
45... Rad5 {[%clk 0:00:09.4]} 46. Re7+ {[%clk 0:00:18.7]} 46... Kd8 {[%clk
0:00:09.5]} 47. Rxc7 {[%clk 0:00:16.6]} 47... Re2 {[%clk 0:00:09.2]} 48. Ra7
{[%clk 0:00:15.2]} 1-0

[Event "Early-Titled-Tuesday-Blitz-February-06-2024"]
[Site "Chess.com"]
[Date "2024.02.06"]
[Round "6"]
[White "JoliyRoger"]
[Black "unclear15"]
[Result "0-1"]
[WhiteElo "2504"]
[BlackElo "2404"]
[TimeControl "180+1"]
[EndTime "9:07:59 PST"]
[Termination "unclear15 won on time"]

1. d4 {[%clk 0:03:00.9]} 1... d5 {[%clk 0:02:59.5]} 2. Nf3 {[%clk 0:02:55]} 2...
Nf6 {[%clk 0:02:12.3]} 3. c4 {[%clk 0:02:26.3]} 3... e6 {[%clk 0:01:55.2]} 4. e3
{[%clk 0:02:27.2]} 4... c5 {[%clk 0:01:51.7]} 5. cxd5 {[%clk 0:02:26.6]} 5...
exd5 {[%clk 0:01:49.6]} 6. Nc3 {[%clk 0:02:27.2]} 6... c4 {[%clk 0:01:48.8]} 7.
Be2 {[%clk 0:02:14]} 7... Nc6 {[%clk 0:01:48.6]} 8. O-O {[%clk 0:02:14.6]} 8...
Bd6 {[%clk 0:01:48.2]} 9. b3 {[%clk 0:02:14.6]} 9... cxb3 {[%clk 0:01:47.1]} 10.
Qxb3 {[%clk 0:02:12.3]} 10... O-O {[%clk 0:01:46.9]} 11. Ba3 {[%clk 0:02:12.9]}
11... Bxa3 {[%clk 0:01:42.4]} 12. Qxa3 {[%clk 0:02:13.1]} 12... Bg4 {[%clk
0:01:40.4]} 13. h3 {[%clk 0:02:11.6]} 13... Bh5 {[%clk 0:01:38.1]} 14. Rab1
{[%clk 0:02:07.3]} 14... Na5 {[%clk 0:01:35.2]} 15. Qa4 {[%clk 0:01:55.4]} 15...
a6 {[%clk 0:01:30.6]} 16. Qb4 {[%clk 0:01:39.2]} 16... b5 {[%clk 0:01:26.5]} 17.
a4 {[%clk 0:01:39.4]} 17... Nc4 {[%clk 0:01:16.8]} 18. axb5 {[%clk 0:01:28.1]}
18... Bxf3 {[%clk 0:01:12.7]} 19. Bxf3 {[%clk 0:01:28]} 19... Nd2 {[%clk
0:01:12.9]} 20. b6 {[%clk 0:01:18.4]} 20... Nxf1 {[%clk 0:01:09.9]} 21. Kxf1
{[%clk 0:01:18.9]} 21... a5 {[%clk 0:01:01]} 22. Qb5 {[%clk 0:01:18.1]} 22...
Qd6 {[%clk 0:00:52.1]} 23. Nxd5 {[%clk 0:01:03.2]} 23... Nxd5 {[%clk 0:00:49.1]}
24. Bxd5 {[%clk 0:00:59.8]} 24... Rab8 {[%clk 0:00:50]} 25. b7 {[%clk
0:00:56.7]} 25... Qc7 {[%clk 0:00:46.2]} 26. Qc6 {[%clk 0:00:43.6]} 26... Qd8
{[%clk 0:00:42.2]} 27. Ra1 {[%clk 0:00:36]} 27... Kh8 {[%clk 0:00:38.5]} 28. Qb5
{[%clk 0:00:32.4]} 28... f5 {[%clk 0:00:30.1]} 29. g3 {[%clk 0:00:30.5]} 29...
Qf6 {[%clk 0:00:20.1]} 30. Rxa5 {[%clk 0:00:26.9]} 30... f4 {[%clk 0:00:20]} 31.
gxf4 {[%clk 0:00:26.8]} 31... Qf5 {[%clk 0:00:19.3]} 32. Qe2 {[%clk 0:00:20.6]}
32... Qxh3+ {[%clk 0:00:17.9]} 33. Kg1 {[%clk 0:00:19.9]} 33... Rf6 {[%clk
0:00:17]} 34. Bg2 {[%clk 0:00:18.6]} 34... Rg6 {[%clk 0:00:16.6]} 35. Qf1 {[%clk
0:00:19.1]} 35... h5 {[%clk 0:00:14.6]} 36. Rg5 {[%clk 0:00:11.9]} 36... Rxg5
{[%clk 0:00:12.2]} 37. fxg5 {[%clk 0:00:12.5]} 37... Qg4 {[%clk 0:00:13.1]} 38.
f4 {[%clk 0:00:08]} 38... Rxb7 {[%clk 0:00:13]} 39. Kh2 {[%clk 0:00:06.5]} 39...
Rb2 {[%clk 0:00:13]} 40. d5 {[%clk 0:00:04.4]} 40... h4 {[%clk 0:00:13.2]} 41.
Kh1 {[%clk 0:00:02.7]} 41... Qg3 {[%clk 0:00:12.7]} 0-1